bitfinex-derivatives/quotes_SOLF0:USTF0_20260314
["timestamp","ask_amount","ask_price","bid_price","bid_amount"]
[1773520114620,9.08169025,86.925,86.882,12.31079458]
[1773520114915,9.08169025,86.924,86.882,12.31079458]
[1773520115119,9.08169025,86.923,86.882,12.31079458]
[1773520115319,9.08169025,86.922,86.882,12.31079458]
[1773520115513,9.08169025,86.921,86.882,12.31079458]
[1773520115713,10.351,86.928,86.882,12.31079458]
[1773520115922,18.38043587,86.927,86.882,12.31079458]
[1773520116119,18.38043587,86.926,86.882,12.31079458]
[1773520116317,9.08162537,86.925,86.882,12.31079458]
[1773520116517,9.08162537,86.924,86.882,12.31079458]
[1773520116716,10.351,86.928,86.882,12.31079458]
[1773520116918,9.08186391,86.927,86.882,12.31079458]
[1773520117121,9.08186391,86.926,86.882,12.31079458]
[1773520117323,9.08186391,86.925,86.882,12.31079458]
[1773520117520,10.351,86.928,86.882,12.31079458]
[1773520117826,9.08062248,86.927,86.882,12.31079458]
[1773520118027,9.08062248,86.926,86.882,12.31079458]
[1773520118323,10.351,86.928,86.882,12.31079458]
[1773520118518,9.0796613,86.927,86.882,12.31079458]
[1773520118716,9.0796613,86.926,86.882,12.31079458]
[1773520119021,9.0796613,86.925,86.882,12.31079458]
[1773520119316,10.351,86.928,86.882,12.31079458]
[1773520119516,9.07922954,86.927,86.882,12.31079458]
[1773520119716,9.07922954,86.926,86.882,12.31079458]
[1773520120017,9.07922954,86.925,86.882,12.31079458]
[1773520120218,10.351,86.928,86.882,12.31079458]
[1773520120424,9.07886147,86.927,86.882,12.31079458]
[1773520120625,9.07886147,86.926,86.882,12.31079458]
[1773520120924,10.351,86.928,86.882,12.31079458]
[1773520121126,9.07886147,86.927,86.882,12.31079458]
[1773520121323,9.07886147,86.926,86.882,12.31079458]
[1773520121524,10.351,86.928,86.882,12.31079458]
[1773520121822,9.07854096,86.927,86.882,12.31079458]
[1773520122017,9.07854096,86.926,86.882,12.31079458]
[1773520122218,10.351,86.928,86.882,12.31079458]
[1773520122414,9.07825817,86.927,86.882,12.31079458]
[1773520122615,9.07825817,86.926,86.882,12.31079458]
[1773520122816,10.351,86.928,86.882,12.31079458]
[1773520123019,9.07825817,86.927,86.882,12.31079458]
[1773520123217,9.07825817,86.926,86.882,12.31079458]
[1773520123426,10.351,86.928,86.882,12.31079458]
[1773520123625,9.07800655,86.927,86.882,12.31079458]
[1773520123825,10.351,86.928,86.882,12.31079458]
[1773520123826,9.07800655,86.926,86.882,12.31079458]
[1773520124026,10.351,86.928,86.882,12.31079458]
[1773520124327,9.07782988,86.927,86.882,12.31079458]
[1773520124522,9.07782988,86.926,86.882,12.31079458]
[1773520124724,10.351,86.928,86.882,12.31079458]
[1773520125017,9.07778117,86.927,86.882,12.31079458]
[1773520125224,9.07778117,86.926,86.882,12.31079458]
[1773520125424,10.351,86.928,86.882,12.31079458]
[1773520125624,9.07762375,86.927,86.882,12.31079458]
[1773520125822,9.07762375,86.926,86.882,12.31079458]
[1773520126022,10.351,86.928,86.882,12.31079458]
[1773520126218,9.07739026,86.927,86.882,12.31079458]
[1773520126426,9.07739026,86.926,86.882,12.31079458]
[1773520126627,10.351,86.928,86.882,12.31079458]
[1773520126926,9.07739026,86.927,86.882,12.31079458]
[1773520127228,9.07739026,86.926,86.882,12.31079458]
[1773520127526,10.351,86.928,86.882,12.31079458]
[1773520127727,9.07722449,86.927,86.882,12.31079458]
[1773520127927,9.07722449,86.926,86.882,12.31079458]
[1773520128129,10.351,86.928,86.882,12.31079458]
[1773520128329,9.07707725,86.927,86.882,12.31079458]
[1773520128534,10.351,86.928,86.882,12.31079458]
[1773520128727,9.07712292,86.927,86.882,12.31079458]
[1773520128921,10.351,86.928,86.882,12.31079458]
[1773520129120,9.08133307,86.927,86.882,12.31079458]
[1773520129326,10.351,86.928,86.882,12.31079458]
[1773520129529,9.08126827,86.927,86.882,12.31079458]
[1773520129729,10.351,86.928,86.882,12.31079458]
[1773520130030,9.08130866,86.927,86.882,12.31079458]
[1773520130230,10.351,86.928,86.882,12.31079458]
[1773520130434,9.08111998,86.927,86.882,12.31079458]
[1773520130633,10.351,86.928,86.882,12.31079458]
[1773520130834,9.08113727,86.927,86.882,12.31079458]
[1773520131037,10.351,86.928,86.882,12.31079458]
[1773520131227,9.08097216,86.927,86.882,12.31079458]
[1773520131429,10.351,86.928,86.882,12.31079458]
[1773520131632,9.08097216,86.927,86.882,12.31079458]
[1773520131825,10.351,86.928,86.882,12.31079458]
[1773520132032,9.08097216,86.927,86.882,12.31079458]
[1773520132328,10.351,86.928,86.882,12.31079458]
[1773520132523,9.08082719,86.927,86.882,12.31079458]
[1773520132726,10.351,86.928,86.882,12.31079458]
[1773520132930,9.08082719,86.927,86.882,12.31079458]
[1773520133132,10.351,86.928,86.882,12.31079458]
[1773520133333,9.08070103,86.927,86.882,12.31079458]
[1773520133531,10.351,86.928,86.882,12.31079458]
[1773520133825,9.08070103,86.927,86.882,12.31079458]
[1773520134028,10.351,86.928,86.882,12.31079458]
[1773520134231,9.08059264,86.927,86.882,12.31079458]
[1773520134431,10.351,86.928,86.882,12.31079458]
[1773520134627,9.08059085,86.927,86.882,12.31079458]
[1773520134832,10.351,86.928,86.882,12.31079458]
[1773520135035,9.08059085,86.927,86.882,12.31079458]
[1773520135237,10.351,86.928,86.882,12.31079458]
[1773520135534,9.08049939,86.927,86.882,12.31079458]
[1773520135730,10.351,86.928,86.882,12.31079458]
[1773520135928,9.08612206,86.927,86.882,12.31079458]
[1773520136131,10.351,86.928,86.882,12.31079458]
[1773520136429,9.08604681,86.927,86.882,12.31079458]
[1773520136630,10.351,86.928,86.882,12.31079458]
[1773520136934,9.08604681,86.927,86.882,12.31079458]
[1773520137126,10.351,86.928,86.882,12.31079458]
[1773520137329,9.08605993,86.927,86.882,12.31079458]
[1773520137530,10.351,86.928,86.882,12.31079458]
[1773520137729,9.08605993,86.927,86.882,12.31079458]
[1773520138028,10.351,86.928,86.882,12.31079458]
[1773520138235,9.08609475,86.927,86.882,12.31079458]
[1773520138435,9.08604915,86.926,86.882,12.31079458]
[1773520138631,10.351,86.928,86.882,12.31079458]
[1773520138835,9.08604915,86.927,86.882,12.31079458]
[1773520139134,10.351,86.928,86.882,12.31079458]
[1773520139135,9.08604915,86.926,86.882,12.31079458]
[1773520139336,10.351,86.928,86.882,12.31079458]
[1773520139634,9.08615237,86.927,86.882,12.31079458]
[1773520139836,9.08615237,86.926,86.882,12.31079458]
[1773520140028,10.351,86.928,86.882,12.31079458]
[1773520140230,9.08624279,86.927,86.882,12.31079458]
[1773520140438,10.351,86.928,86.882,12.31079458]
[1773520141243,60.1458311,86.948,86.872,10.358]
[1773520141244,3.1272241,86.92,86.872,12.30664631]
[1773520141441,14.33005899,86.949,86.872,12.30664631]
[1773520141442,3.1272241,86.91,86.872,12.30664631]
[1773520141642,9.09238604,86.909,86.872,12.30664631]
[1773520141833,3.12840095,86.91,86.872,12.30664631]
[1773520142035,9.08854463,86.909,86.872,12.30664631]
[1773520142235,3.12840095,86.91,86.872,12.30664631]
[1773520145941,3.12840095,86.9,86.872,12.30664631]
[1773520147639,10.354,86.909,86.872,12.30664631]
[1773520168664,3.12840095,86.9,86.854,12.29187835]
[1773520171571,10.355,86.899,86.854,12.29187835]
[1773520185085,10.355,86.897,86.854,12.29187835]
[1773520186378,9.0902923,86.896,86.854,12.29187835]
[1773520186581,10.355,86.897,86.854,12.29187835]
[1773520186781,9.09029104,86.896,86.854,12.29187835]
[1773520187082,10.355,86.897,86.854,12.29187835]
[1773520187283,9.09028925,86.896,86.854,12.29187835]
[1773520187483,10.355,86.897,86.854,12.29187835]
[1773520187682,9.09048067,86.896,86.854,12.29187835]
[1773520187981,10.355,86.897,86.854,12.29187835]
[1773520188173,9.09048067,86.896,86.854,12.29187835]
[1773520188374,10.355,86.897,86.854,12.29187835]
[1773520188574,9.09073838,86.896,86.854,12.29187835]
[1773520188778,10.355,86.897,86.854,12.29187835]
[1773520188984,9.09073838,86.896,86.854,12.29187835]
[1773520189183,10.355,86.897,86.854,12.29187835]
[1773520189384,9.09105899,86.896,86.854,12.29187835]
[1773520189585,10.355,86.897,86.854,12.29187835]
[1773520189787,9.09105899,86.896,86.854,12.29187835]
[1773520189987,10.355,86.897,86.854,12.29187835]
[1773520190287,9.09105899,86.896,86.854,12.29187835]
[1773520190486,10.355,86.897,86.854,12.29187835]
[1773520190790,9.09145259,86.896,86.854,12.29187835]
[1773520190977,10.355,86.897,86.854,12.29187835]
[1773520191183,9.09145259,86.896,86.854,12.29187835]
[1773520191384,10.355,86.897,86.854,12.29187835]
[1773520191587,9.09144622,86.896,86.854,12.29187835]
[1773520191785,10.355,86.897,86.854,12.29187835]
[1773520191978,9.09144622,86.896,86.854,12.29187835]
[1773520192186,10.355,86.897,86.854,12.29187835]
[1773520192385,9.09147162,86.896,86.854,12.29187835]
[1773520192686,10.355,86.897,86.854,12.29187835]
[1773520192884,9.09126439,86.896,86.854,12.29187835]
[1773520193083,10.355,86.897,86.854,12.29187835]
[1773520193284,9.09127746,86.896,86.854,12.29187835]
[1773520193483,10.355,86.897,86.854,12.29187835]
[1773520193786,9.09114189,86.896,86.854,12.29187835]
[1773520193990,10.355,86.897,86.854,12.29187835]
[1773520194284,9.09114189,86.896,86.854,12.29187835]
[1773520194488,10.355,86.897,86.854,12.29187835]
[1773520194684,9.09122722,86.896,86.854,12.29187835]
[1773520194891,10.355,86.897,86.854,12.29187835]
[1773520195088,9.09122376,86.896,86.854,12.29187835]
[1773520195281,10.355,86.897,86.854,12.29187835]
[1773520195484,9.09134465,86.896,86.854,12.29187835]
[1773520195685,10.355,86.897,86.854,12.29187835]
[1773520195886,9.09473538,86.896,86.854,12.29187835]
[1773520196091,10.355,86.897,86.854,12.29187835]
[1773520196391,9.09473538,86.896,86.854,12.29187835]
[1773520196687,10.355,86.897,86.854,12.29187835]
[1773520196991,9.09488907,86.896,86.854,12.29187835]
[1773520197189,10.355,86.897,86.854,12.29187835]
[1773520197390,9.0950748,86.896,86.854,12.29187835]
[1773520197695,10.355,86.897,86.854,12.29187835]
[1773520197992,9.0950748,86.896,86.854,12.29187835]
[1773520198289,10.355,86.897,86.854,12.29187835]
[1773520198489,9.09528982,86.896,86.854,12.29187835]
[1773520198692,10.355,86.897,86.854,12.29187835]
[1773520198891,9.09526096,86.896,86.854,12.29187835]
[1773520199092,10.355,86.897,86.854,12.29187835]
[1773520199291,9.09526103,86.896,86.854,12.29187835]
[1773520199492,9.09526103,86.895,86.854,12.29187835]
[1773520199684,10.355,86.897,86.854,12.29187835]
[1773520199884,9.09551345,86.896,86.854,12.29187835]
[1773520200082,9.09551345,86.895,86.854,12.29187835]
[1773520200283,10.355,86.897,86.854,12.29187835]
[1773520200492,9.09585454,86.896,86.854,12.29187835]
[1773520200692,9.09585454,86.895,86.854,12.29187835]
[1773520200897,10.355,86.897,86.854,12.29187835]
[1773520201095,9.09576867,86.896,86.854,12.29187835]
[1773520201392,9.09576867,86.895,86.854,12.29187835]
[1773520201593,10.355,86.897,86.854,12.29187835]
[1773520201894,9.09609866,86.896,86.854,12.29187835]
[1773520202095,9.09609866,86.895,86.854,12.29187835]
[1773520202295,10.355,86.897,86.854,12.29187835]
[1773520202595,9.09642783,86.896,86.854,12.29187835]
[1773520202791,9.09642783,86.895,86.854,12.29187835]
[1773520202991,10.355,86.897,86.854,12.29187835]
[1773520203193,9.09638313,86.896,86.854,12.29187835]
[1773520203391,9.09638313,86.895,86.854,12.29187835]
[1773520203694,10.355,86.897,86.854,12.29187835]
[1773520203994,9.09670666,86.896,86.854,12.29187835]
[1773520204195,9.09670666,86.895,86.854,12.29187835]
[1773520204394,10.355,86.897,86.854,12.29187835]
[1773520204586,9.09717829,86.896,86.854,12.29187835]
[1773520204789,9.09717829,86.895,86.854,12.29187835]
[1773520204996,10.354,86.905,86.854,12.29187835]
[1773520205296,18.23488689,86.904,86.854,12.29187835]
[1773520205496,9.09728386,86.903,86.854,12.29187835]
[1773520205697,9.09728386,86.902,86.854,12.29187835]
[1773520205898,10.355,86.9,86.854,12.29187835]
[1773520206100,9.09728386,86.899,86.854,12.29187835]
[1773520206294,9.09728386,86.898,86.854,12.29187835]
[1773520206488,9.09728386,86.897,86.854,12.29187835]
[1773520206689,9.09728386,86.896,86.854,12.29187835]
[1773520206893,9.09728386,86.895,86.854,12.29187835]
[1773520207093,9.09652714,86.894,86.854,12.29187835]
[1773520207294,10.355,86.9,86.854,12.29187835]
[1773520207497,9.0970979,86.899,86.854,12.29187835]
[1773520207795,9.0970979,86.898,86.854,12.29187835]
[1773520207999,9.0970979,86.897,86.854,12.29187835]
[1773520208195,9.0970979,86.896,86.854,12.29187835]
[1773520208500,9.0970979,86.895,86.854,12.29187835]
[1773520208797,9.0970979,86.894,86.854,12.29187835]
[1773520208998,10.355,86.9,86.854,12.29187835]
[1773520209199,9.10021989,86.899,86.854,12.29187835]
[1773520209498,9.10021989,86.898,86.854,12.29187835]
[1773520209700,9.10021989,86.897,86.854,12.29187835]
[1773520209900,9.10021989,86.896,86.854,12.29187835]
[1773520210101,9.10021989,86.895,86.854,12.29187835]
[1773520210302,9.10021989,86.894,86.854,12.29187835]
[1773520210501,9.10021989,86.893,86.854,12.29187835]
[1773520210698,10.355,86.9,86.854,12.29187835]
[1773520210898,9.10216514,86.899,86.854,12.29187835]
[1773520211098,9.10216514,86.898,86.854,12.29187835]
[1773520211298,9.10216514,86.897,86.854,12.29187835]
[1773520211599,9.10216514,86.896,86.854,12.29187835]
[1773520211794,9.10216514,86.895,86.854,12.29187835]
[1773520212002,9.10216514,86.894,86.854,12.29187835]
[1773520212203,9.10216514,86.893,86.854,12.29187835]
[1773520212405,9.10216514,86.892,86.854,12.29187835]
[1773520212604,10.355,86.9,86.854,12.29187835]
[1773520212805,9.10500059,86.899,86.854,12.29187835]
[1773520213006,9.10500059,86.898,86.854,12.29187835]
[1773520213206,9.10500059,86.897,86.854,12.29187835]
[1773520213403,9.10500059,86.896,86.854,12.29187835]
[1773520213600,9.10500059,86.895,86.854,12.29187835]
[1773520213800,9.10500059,86.894,86.854,12.29187835]
[1773520213999,9.10500059,86.893,86.854,12.29187835]
[1773520214299,9.10500059,86.892,86.854,12.29187835]
[1773520214598,9.10500059,86.891,86.854,12.29187835]
[1773520214801,10.355,86.9,86.854,12.29187835]
[1773520215001,18.28742796,86.899,86.854,12.29187835]
[1773520215200,9.1082291,86.898,86.854,12.29187835]
[1773520215403,9.1082291,86.897,86.854,12.29187835]
[1773520215603,9.1082291,86.896,86.854,12.29187835]
[1773520215804,9.1082291,86.895,86.854,12.29187835]
[1773520216005,9.1082291,86.894,86.854,12.29187835]
[1773520216199,9.1082291,86.893,86.854,12.29187835]
[1773520216401,9.1082291,86.892,86.854,12.29187835]
[1773520216601,9.1082291,86.891,86.854,12.29187835]
[1773520216805,9.1082291,86.89,86.854,12.29187835]
[1773520217005,10.355,86.9,86.854,12.29187835]
[1773520217203,18.28538016,86.899,86.854,12.29187835]
[1773520217407,18.28538016,86.898,86.854,12.29187835]
[1773520217608,9.10965691,86.897,86.854,12.29187835]
[1773520217804,9.10965691,86.896,86.854,12.29187835]
[1773520218109,9.10965691,86.895,86.854,12.29187835]
[1773520218307,9.10965691,86.894,86.854,12.29187835]
[1773520218508,9.10965691,86.893,86.854,12.29187835]
[1773520218708,9.10965691,86.892,86.854,12.29187835]
[1773520218910,9.10965691,86.891,86.854,12.29187835]
[1773520219111,9.10965691,86.89,86.854,12.29187835]
[1773520219308,10.355,86.9,86.854,12.29187835]
[1773520219509,18.28543688,86.899,86.854,12.29187835]
[1773520219710,18.28543688,86.898,86.854,12.29187835]
[1773520219909,9.10968147,86.897,86.854,12.29187835]
[1773520220105,9.10968147,86.896,86.854,12.29187835]
[1773520220411,9.10968147,86.895,86.854,12.29187835]
[1773520220711,9.10968147,86.894,86.854,12.29187835]
[1773520220900,9.10968147,86.893,86.854,12.29187835]
[1773520221101,9.10968147,86.892,86.854,12.29187835]
[1773520221310,9.10968147,86.891,86.854,12.29187835]
[1773520221506,9.10968147,86.89,86.854,12.29187835]
[1773520221810,13.4842053,86.9,86.854,12.29187835]
[1773520222004,18.28646015,86.899,86.854,12.29187835]
[1773520222209,18.28646015,86.898,86.854,12.29187835]
[1773520222410,9.11018816,86.897,86.854,12.29187835]
[1773520222603,9.11018816,86.896,86.854,12.29187835]
[1773520222805,9.11018816,86.895,86.854,12.29187835]
[1773520223003,9.11018816,86.894,86.854,12.29187835]
[1773520223212,9.11018816,86.893,86.854,12.29187835]
[1773520223411,9.11018816,86.892,86.854,12.29187835]
[1773520223613,9.11018816,86.891,86.854,12.29187835]
[1773520223911,9.11018816,86.89,86.854,12.29187835]
[1773520224112,13.4842053,86.9,86.854,12.29187835]
[1773520224312,18.28646618,86.899,86.854,12.29187835]
[1773520224512,18.28646618,86.898,86.854,12.29187835]
[1773520224713,9.11018928,86.897,86.854,12.29187835]
[1773520224914,9.11018928,86.896,86.854,12.29187835]
[1773520225107,9.11018928,86.895,86.854,12.29187835]
[1773520225310,9.11018928,86.894,86.854,12.29187835]
[1773520225510,9.11018928,86.893,86.854,12.29187835]
[1773520225710,9.11018928,86.892,86.854,12.29187835]
[1773520225909,9.11018928,86.891,86.854,12.29187835]
[1773520226112,9.11018928,86.89,86.854,12.29187835]
[1773520226312,13.4842053,86.9,86.854,12.29187835]
[1773520226513,3.1292053,86.89,86.839,12.26290373]
[1773520226713,9.11474266,86.889,86.839,12.26290373]
[1773520226913,9.11474266,86.888,86.839,12.26290373]
[1773520227109,9.11474266,86.887,86.839,12.26290373]
[1773520227318,9.11474266,86.886,86.839,12.26290373]
[1773520227511,9.11474266,86.885,86.839,12.26290373]
[1773520227716,9.11474266,86.884,86.839,12.26290373]
[1773520227911,9.11474266,86.883,86.839,12.26290373]
[1773520228217,3.1292053,86.89,86.839,12.26290373]
[1773520228520,9.10816727,86.889,86.839,12.26290373]
[1773520228721,9.10816727,86.888,86.839,12.26290373]
[1773520229023,9.10816727,86.887,86.839,12.26290373]
[1773520229220,9.10816727,86.886,86.839,12.26290373]
[1773520229422,9.10816727,86.885,86.839,12.26290373]
[1773520229622,9.10816727,86.884,86.839,12.26290373]
[1773520229819,3.1292053,86.89,86.839,12.26290373]
[1773520230019,9.10698159,86.889,86.839,12.26290373]
[1773520230318,9.10698159,86.888,86.839,12.26290373]
[1773520230519,9.10698159,86.887,86.839,12.26290373]
[1773520230719,3.1292053,86.89,86.839,12.26290373]
[1773520230921,9.10603345,86.889,86.841,12.2669267]
[1773520231116,9.10603345,86.888,86.841,12.2669267]
[1773520231320,9.10603345,86.887,86.841,12.2669267]
[1773520231615,10.355,86.895,86.841,12.2669267]
[1773520231921,18.23288458,86.894,86.841,12.2669267]
[1773520232119,9.10523594,86.893,86.841,12.2669267]
[1773520232312,9.10523594,86.892,86.841,12.2669267]
[1773520232514,9.10523594,86.891,86.841,12.2669267]
[1773520232715,9.10523594,86.89,86.841,12.2669267]
[1773520232922,9.10523594,86.889,86.841,12.2669267]
[1773520233122,9.10523594,86.888,86.841,12.2669267]
[1773520233325,10.355,86.895,86.841,12.2669267]
[1773520233623,9.10394566,86.894,86.841,12.2669267]
[1773520233824,9.10394566,86.893,86.841,12.2669267]
[1773520234025,9.10394566,86.892,86.841,12.2669267]
[1773520234225,3.1292053,86.89,86.841,12.2669267]
[1773520234426,9.10394566,86.889,86.841,12.2669267]
[1773520234625,9.10394566,86.888,86.841,12.2669267]
[1773520234825,3.1292053,86.89,86.841,12.2669267]
[1773520235127,9.10340892,86.889,86.841,12.2669267]
[1773520235423,9.10340892,86.888,86.841,12.2669267]
[1773520235624,3.1292053,86.89,86.841,12.2669267]
[1773520235819,9.10293161,86.889,86.844,12.26778732]
[1773520236025,9.10293161,86.888,86.844,12.26778732]
[1773520236227,3.1292053,86.89,86.844,12.26778732]
[1773520236422,9.10250596,86.889,86.844,12.26778732]
[1773520236623,9.10250596,86.888,86.844,12.26778732]
[1773520236925,3.1292053,86.89,86.844,12.26778732]
[1773520237229,10.356,86.887,86.844,12.26778732]
[1773520240528,9.10112637,86.886,86.844,12.26778732]
[1773520240731,10.356,86.887,86.844,12.26778732]
[1773520240929,9.10112637,86.886,86.844,12.26778732]
[1773520241129,10.356,86.887,86.844,12.26778732]
[1773520241330,9.10095278,86.886,86.844,12.26778732]
[1773520241530,10.356,86.887,86.844,12.26778732]
[1773520241726,9.1008807,86.886,86.844,12.26778732]
[1773520242028,10.356,86.887,86.844,12.26778732]
[1773520242229,9.10073511,86.886,86.844,12.26778732]
[1773520242429,10.356,86.887,86.844,12.26778732]
[1773520242630,9.10066933,86.886,86.844,12.26778732]
[1773520242935,10.356,86.887,86.844,12.26778732]
[1773520243134,9.10066321,86.886,86.844,12.26778732]
[1773520243330,10.356,86.887,86.844,12.26778732]
[1773520243629,9.10048122,86.886,86.844,12.26778732]
[1773520243830,10.356,86.887,86.844,12.26778732]
[1773520244029,9.10140529,86.886,86.844,12.26778732]
[1773520244227,10.356,86.887,86.844,12.26778732]
[1773520244426,9.10126756,86.886,86.844,12.26778732]
[1773520244631,10.356,86.887,86.844,12.26778732]
[1773520244932,9.10127086,86.886,86.844,12.26778732]
[1773520245134,10.356,86.887,86.844,12.26778732]
[1773520245335,9.10119228,86.886,86.844,12.26778732]
[1773520245535,10.356,86.887,86.844,12.26778732]
[1773520245835,9.10119228,86.886,86.844,12.26778732]
[1773520246131,10.356,86.887,86.844,12.26778732]
[1773520246329,9.10104994,86.886,86.844,12.26778732]
[1773520246639,10.356,86.887,86.844,12.26778732]
[1773520246933,9.10104994,86.886,86.844,12.26778732]
[1773520247139,10.356,86.887,86.844,12.26778732]
[1773520247437,9.10098534,86.886,86.844,12.26778732]
[1773520247633,10.356,86.887,86.844,12.26778732]
[1773520247840,9.1010002,86.886,86.844,12.26778732]
[1773520248037,10.356,86.887,86.844,12.26778732]
[1773520248337,9.10096663,86.886,86.844,12.26778732]
[1773520248537,10.356,86.887,86.844,12.26778732]
[1773520248739,9.10096663,86.886,86.844,12.26778732]
[1773520248939,10.356,86.887,86.844,12.26778732]
[1773520249142,9.10097021,86.886,86.844,12.26778732]
[1773520249439,10.356,86.887,86.844,12.26778732]
[1773520249641,9.10096755,86.886,86.844,12.26778732]
[1773520249843,10.356,86.887,86.844,12.26778732]
[1773520250139,9.10096755,86.886,86.844,12.26778732]
[1773520250339,10.356,86.887,86.844,12.26778732]
[1773520250536,9.10098881,86.886,86.844,12.26778732]
[1773520250838,10.356,86.887,86.844,12.26778732]
[1773520251040,9.10098881,86.886,86.844,12.26778732]
[1773520251240,10.356,86.887,86.844,12.26778732]
[1773520251441,9.1010455,86.886,86.844,12.26778732]
[1773520251644,10.356,86.887,86.844,12.26778732]
[1773520251942,9.1010455,86.886,86.844,12.26778732]
[1773520252147,10.356,86.887,86.844,12.26778732]
[1773520252335,9.10113101,86.886,86.844,12.26778732]
[1773520252538,10.356,86.887,86.844,12.26778732]
[1773520252737,9.10113281,86.886,86.844,12.26778732]
[1773520252936,10.356,86.887,86.844,12.26778732]
[1773520253138,9.10113281,86.886,86.844,12.26778732]
[1773520253339,10.356,86.887,86.844,12.26778732]
[1773520253542,9.10124548,86.886,86.844,12.26778732]
[1773520253742,10.356,86.887,86.844,12.26778732]
[1773520253946,9.10124548,86.886,86.844,12.26778732]
[1773520254147,10.356,86.887,86.844,12.26778732]
[1773520254345,9.10138783,86.886,86.844,12.26778732]
[1773520254547,10.356,86.887,86.844,12.26778732]
[1773520254846,9.10138783,86.886,86.844,12.26778732]
[1773520255145,10.356,86.887,86.844,12.26778732]
[1773520255345,9.10156082,86.886,86.844,12.26778732]
[1773520255546,10.356,86.887,86.844,12.26778732]
[1773520255848,9.10156208,86.886,86.844,12.26778732]
[1773520256048,10.356,86.887,86.844,12.26778732]
[1773520256244,9.11103364,86.886,86.844,12.26778732]
[1773520256444,10.356,86.887,86.844,12.26778732]
[1773520256640,9.11103364,86.886,86.844,12.26778732]
[1773520256845,10.356,86.887,86.844,12.26778732]
[1773520257147,9.11102472,86.886,86.844,12.26778732]
[1773520257444,10.356,86.887,86.844,12.26778732]
[1773520257640,9.11126372,86.886,86.844,12.26778732]
[1773520257845,10.356,86.887,86.844,12.26778732]
[1773520258045,9.11126372,86.886,86.844,12.26778732]
[1773520258244,10.356,86.887,86.844,12.26778732]
[1773520258542,9.11153786,86.886,86.844,12.26778732]
[1773520258744,10.356,86.887,86.844,12.26778732]
[1773520258943,9.11153786,86.886,86.844,12.26778732]
[1773520259139,10.356,86.887,86.844,12.26778732]
[1773520259344,9.11184653,86.886,86.844,12.26778732]
[1773520259549,10.356,86.887,86.844,12.26778732]
[1773520259742,9.11185521,86.886,86.844,12.26778732]
[1773520260041,10.356,86.887,86.844,12.26778732]
[1773520260238,9.11211374,86.886,86.844,12.26778732]
[1773520260442,10.356,86.887,86.844,12.26778732]
[1773520260646,9.11211374,86.886,86.844,12.26778732]
[1773520260947,10.356,86.887,86.844,12.26778732]
[1773520261146,9.11252548,86.886,86.844,12.26778732]
[1773520261347,9.11252548,86.885,86.844,12.26778732]
[1773520261546,10.356,86.887,86.844,12.26778732]
[1773520261848,9.11267089,86.886,86.844,12.26778732]
[1773520262148,9.11267089,86.885,86.844,12.26778732]
[1773520262348,10.356,86.887,86.844,12.26778732]
[1773520262545,9.11310507,86.886,86.844,12.26778732]
[1773520262745,9.11310507,86.885,86.844,12.26778732]
[1773520262943,10.356,86.887,86.844,12.26778732]
[1773520263143,9.11310507,86.886,86.844,12.26778732]
[1773520263344,9.11310507,86.885,86.844,12.26778732]
[1773520263546,10.356,86.887,86.844,12.26778732]
[1773520263845,9.11344733,86.886,86.844,12.26778732]
[1773520264045,9.11344733,86.885,86.844,12.26778732]
[1773520264347,10.356,86.887,86.844,12.26778732]
[1773520264542,9.11429259,86.886,86.844,12.26778732]
[1773520264746,9.11429259,86.885,86.844,12.26778732]
[1773520264946,10.356,86.887,86.844,12.26778732]
[1773520265147,9.11429787,86.886,86.844,12.26778732]
[1773520265346,9.11429787,86.885,86.844,12.26778732]
[1773520265548,10.356,86.887,86.844,12.26778732]
[1773520265744,9.1149234,86.886,86.844,12.26778732]
[1773520265945,9.1149234,86.885,86.844,12.26778732]
[1773520266247,10.356,86.887,86.844,12.26778732]
[1773520266248,9.11540175,86.884,86.844,12.26778732]
[1773520266450,10.356,86.887,86.844,12.26778732]
[1773520266648,9.11549169,86.886,86.844,12.26778732]
[1773520266847,9.11549169,86.885,86.844,12.26778732]
[1773520267048,9.11549169,86.884,86.844,12.26778732]
[1773520267251,10.356,86.887,86.844,12.26778732]
[1773520267442,9.1163115,86.886,86.844,12.26778732]
[1773520267744,9.1163115,86.885,86.844,12.26778732]
[1773520267942,9.1163115,86.884,86.844,12.26778732]
[1773520268152,9.11728612,86.883,86.844,12.26778732]
[1773520268351,10.356,86.887,86.844,12.26778732]
[1773520268551,9.11728612,86.886,86.844,12.26778732]
[1773520268752,9.11728612,86.885,86.844,12.26778732]
[1773520268957,9.11728612,86.884,86.844,12.26778732]
[1773520269155,9.11728612,86.883,86.844,12.26778732]
[1773520269350,10.356,86.887,86.844,12.26778732]